Cogmind - Beta 15 @@@ ROGUE MODE // 2025.09.19 @ 13:44:29 Player: shapeshifter Result: Destroyed by G-47 Trooper with Particle Gun Performance ------------- Evolutions (1) 500 Regions Visited (6) 1200 Robots Destroyed (42) 210 Value Destroyed (1002) 1002 Prototype IDs (25) 500 Alien Tech Used (0) 0 Bonus (300) 300 TOTAL SCORE: 3712 Bonus ------- Aligned with FarCom 300 Cogmind --------- Core Integrity 0/400 Matter 273/300 Energy 33/100 System Corruption 0% Temperature Danger (448) Movement Core (1750) Ox34 Location -8/Mines Parts ------- > --- POWER (1) -------- (None) > --- PROPULSION (2) --- Carbon-fiber Leg > --- UTILITY (4) ------ Huge Storage Unit Hardened Light Armor Plating Hardened Light Armor Plating Hardened Light Armor Plating > --- WEAPON (2) ------- Gauss Rifle Heavy Battle Rifle > --- INVENTORY (25) --- Large Storage Unit Lightpack 2.0 Large Battery (200) High-capacity Matter Pod (94) Weight Redist. System ECM Suite Hardened Light Armor Plating Hardened Light Armor Plating Trap Extractor (0/4) Advanced Beam Cannon Firepult Light Assault Rifle Light Assault Rifle AWS/Autocannon Mini Grenade Launcher Mining Laser Heavy Hammer Katana Peak State ------------ > --- POWER ------------ Cooled Ion Engine > --- PROPULSION ------- Carbon-fiber Leg Compact Wheel > --- UTILITY ---------- Huge Storage Unit Compact Matter Pod Hardened Light Armor Plating Hardened Light Armor Plating > --- WEAPON ----------- Gauss Rifle Heavy Battle Rifle > --- INVENTORY -------- Large Storage Unit High-capacity Storage Unit Lightpack 2.0 Large Battery High-capacity Matter Pod Weight Redist. System ECM Suite Hardened Light Armor Plating Hardened Light Armor Plating Hardened Light Armor Plating Hardened Light Armor Plating Trap Extractor Advanced Beam Cannon Firepult Light Assault Rifle Light Assault Rifle AWS/Autocannon Mining Laser Heavy Hammer Katana [Rating: 33] Favorites ----------- Power Cooled Ion Engine Engine Cooled Ion Engine Propulsion Light Treads Treads Light Treads Leg Carbon-fiber Leg Wheel Compact Wheel Utility Hardened Light Armor Plating Device Seismic Detector Storage Medium Storage Unit Protection Hardened Light Armor Plating Weapon Assault Rifle Energy Cannon Advanced Beam Cannon Ballistic Gun Assault Rifle Launcher Rocket Launcher Special Weapon Mining Laser Build | -11 -10 -10 -9 -9 -9 -8 ------- Run | Yrd Mat Min Mat Min Exi Min Slots Evolved 2 | . . . 2 . . . Power . | . . . . . . . Propulsion . | . . . . . . . Utility 2 | . . . 2 . . . Weapon . | . . . . . . . Parts Attached 42 | 7 2 1 21 2 2 7 Power 6 | 1 . 1 4 . . . Engine 6 | 1 . 1 4 . . . Core . | . . . . . . . Reactor . | . . . . . . . Propulsion 7 | 2 . . 4 . . 1 Treads 2 | 2 . . . . . . Leg 1 | . . . . . . 1 Wheel 4 | . . . 4 . . . Hover . | . . . . . . . Flight . | . . . . . . . Utility 18 | 2 1 . 8 1 2 4 Device 2 | 1 . . . . . 1 Storage 8 | 1 1 . 3 . 2 1 Processor . | . . . . . . . Hackware . | . . . . . . . Protection 8 | . . . 5 1 . 2 Artifact . | . . . . . . . Weapon 11 | 2 1 . 5 1 . 2 Energy Gun . | . . . . . . . Energy Cannon 1 | . . . 1 . . . Ballistic Gun 8 | 2 1 . 3 . . 2 Ballistic Cannon . | . . . . . . . Launcher 1 | . . . 1 . . . Special Weapon 1 | . . . . 1 . . Impact Weapon . | . . . . . . . Slashing Weapon . | . . . . . . . Piercing Weapon . | . . . . . . . Special Melee Weapon . | . . . . . . . Unidentified Prototypes 2 | . . . 2 . . . Parts Lost 16 | . . . 11 . . 5 Power 2 | . . . 1 . . 1 Propulsion 4 | . . . 2 . . 2 Utility 6 | . . . 4 . . 2 Weapon 4 | . . . 4 . . . Highest Loss Streak 7 | . . . 7 . . 4 To Critical Strikes 1 | . . . 1 . . . Average Backups 13 | 3 7 9 12 14 18 19 Power . | . 1 . . . 1 . Propulsion . | 1 2 2 . . . . Utility 6 | . 1 2 4 9 11 11 Weapon 5 | . 2 5 6 4 5 8 Tool/Special . | . . . . . . . Unused Backups 19 | . . . 4 . 3 12 Power 3 | . . . . . 3 . Propulsion 1 | . . . 1 . . . Utility 8 | . . . 1 . . 7 Weapon 7 | . . . 2 . . 5 Tool/Special . | . . . . . . . Average Slot Usage (%) 94 | . 100 100 78 100 100 97 Engine 12 | . 14 14 11 11 11 10 Treads 11 | . 28 28 7 . . . Leg 1 | . . . . . . 6 Wheel 9 | . . . 10 22 22 13 Device 5 | . 14 14 1 . . . Storage 18 | . 14 14 18 22 22 21 Protection 10 | . . . 7 22 22 22 Ballistic Gun 23 | . 28 28 21 18 22 22 Peak Build Rating 33 | 7 7 8 16 16 24 33 Average Rating 14 | 5 7 7 9 15 18 30 On Entrance 10 | . 7 7 8 15 15 24 Naked Turns . | . . . . . . . Heaviest Build 109 | 14 20 20 62 62 103 109 Greatest Support 40 | 40 40 40 40 32 32 32 Greatest Overweight (x) 20 | . . . 20 1 3 6 Average Overweight (x) 1 | . . . . 1 1 5 Largest Inventory Capacity 25 | 8 10 10 20 20 25 25 Average Capacity 15 | 7 9 10 14 20 21 25 Most Carried 25 | 5 9 10 20 16 24 25 Average Carried 14 | 3 7 9 12 14 20 24 Final Capacity 25 | 8 10 10 20 20 25 25 Final Carried 24 | 4 9 10 12 15 24 23 Class Distribution -------------------- 100% | Mutant Dominant Class ---------------- Mutant | -10/Materials Mutant | -10/Mines Mutant | -9/Materials Mutant | -9/Mines Mutant | -9/Exiles Mutant | -8/Mines Resources | -11 -10 -10 -9 -9 -9 -8 ----------- Run | Yrd Mat Min Mat Min Exi Min Matter Collected 1782 | 304 76 80 455 140 166 561 Remotely . | . . . . . . . Salvage Created 1565 | 129 152 82 862 11 . 329 Parts 79 | 9 8 7 38 . . 17 Haulers Intercepted 2 | . . . 2 . . . Recyclers Shooed 3 | . . . 3 . . . Parts Field Recycled . | . . . . . . . Retrieved Matter . | . . . . . . . Parts Self-Destructed . | . . . . . . . Prevented . | . . . . . . . Kills | -11 -10 -10 -9 -9 -9 -8 ------- Run | Yrd Mat Min Mat Min Exi Min Combat Hostiles Destroyed 27 | . 4 5 13 1 . 4 Guns 24 | . 4 5 10 1 . 4 AOE 3 | . . . 3 . . . Classes Destroyed 13 | 2 2 . 6 1 . 2 Worker 4 | . . . 3 . . 1 Builder 1 | . . . . . . 1 Tunneler 2 | 2 . . . . . . Hauler 2 | . . . 2 . . . Recycler 4 | 1 . . 2 . . 1 Mechanic 1 | . . . 1 . . . Watcher 2 | . . . 2 . . . Swarmer 6 | . 1 5 . . . . Grunt 15 | . 3 . 10 . . 2 Duelist 3 | . . . 2 . . 1 Sentry 1 | . . . 1 . . . Hunter 1 | . . . . . . 1 Assembled 1 | . . . . 1 . . Best Kill Streak 9 | 3 3 3 9 1 . 3 Combat Bots Only 5 | . 3 3 5 1 . 3 Max Kills in Single Turn 3 | 1 1 1 3 1 . 1 Gunslinging . | . . . . . . . Exploded 2 | . . . 2 . . . Melee . | . . . . . . . Uniques/NPCs Destroyed . | . . . . . . . Combat | -11 -10 -10 -9 -9 -9 -8 -------- Run | Yrd Mat Min Mat Min Exi Min Hostile Shots Fired 303 | . 36 42 136 16 . 73 Missed 84 | . 9 17 26 5 . 27 Hits 219 | . 27 25 110 11 . 46 Melee 6 | . . . 5 . . 1 Projectile 213 | . 27 25 105 11 . 45 Critical Strikes 8 | . . . 4 . . 4 Damage Taken 2980 | . 276 193 1576 183 . 752 Core 501 | . 87 7 261 20 . 126 Absorbed by Shields . | . . . . . . . Core Remaining (%) 81 | 100 . 62 . . . . Volleys Fired 192 | 11 19 19 80 28 . 35 Largest 2 | 2 2 2 2 2 . 2 Hottest 100 | 40 40 40 68 100 . 61 Shots Fired 349 | 22 38 38 149 32 . 70 Gun 326 | 22 38 38 141 17 . 70 Cannon 3 | . . . 3 . . . Launcher 5 | . . . 5 . . . Special 15 | . . . . 15 . . Kinetic 326 | 22 38 38 141 17 . 70 Thermal 18 | . . . 3 15 . . Explosive 5 | . . . 5 . . . Electromagnetic . | . . . . . . . Robot Hit Streak 22 | 7 9 3 22 8 . 12 Robot Miss Streak 8 | 2 3 8 6 2 . 2 Penetration Max 1 | . . . . . . 1 Secondary Targets 8 | . 1 1 5 . . 1 Max Gunslinging Chain 1 | . 1 1 1 . . 1 Shots Hit Robots 205 | 14 23 15 92 12 . 49 Core Hits 90 | 5 11 5 49 3 . 17 Critical Kills . | . . . . . . . Critical Parts Destroyed . | . . . . . . . Critical Strikes . | . . . . . . . Melee Attacks . | . . . . . . . Impact . | . . . . . . . Slashing . | . . . . . . . Piercing . | . . . . . . . Sneak Attacks . | . . . . . . . Combat Hostiles . | . . . . . . . Follow-up Attacks . | . . . . . . . Damage Inflicted 3050 | 144 270 185 1483 97 . 871 Guns 2554 | 144 270 185 987 97 . 871 Cannons 20 | . . . 20 . . . Explosions 476 | . . . 476 . . . Melee . | . . . . . . . Ramming . | . . . . . . . Kinetic 2554 | 144 270 185 987 97 . 871 Thermal 20 | . . . 20 . . . Explosive 476 | . . . 476 . . . Electromagnetic . | . . . . . . . Impact . | . . . . . . . Slashing . | . . . . . . . Piercing . | . . . . . . . Highest Corruption . | . . . . . . . Average Corruption . | . . . . . . . Corruption Purged . | . . . . . . . Corruption Blocked . | . . . . . . . Overload Shots . | . . . . . . . Overflow Damage . | . . . . . . . Projectiles . | . . . . . . . Explosions . | . . . . . . . Melee . | . . . . . . . Knockbacks . | . . . . . . . Impact . | . . . . . . . Kinetic . | . . . . . . . Secondary . | . . . . . . . Self-Inflicted Damage 100 | . . . 100 . . . Shots 4 | . . . 4 . . . Rammed . | . . . . . . . Targets Rammed . | . . . . . . . Kicked . | . . . . . . . Crushed . | . . . . . . . Highest Temperature 462 | . 12 . 462 325 . 439 Average Temperature 165 | . 6 . 250 154 . 89 Received Heat Transfer 1221 | . 90 . 717 . . 414 Effects 9 | . . . 8 . . 1 Shutdowns 2 | . . . 2 . . . Energy Bleed 4 | . . . 3 . . 1 Interference 1 | . . . 1 . . . Matter Decay 2 | . . . 2 . . . Siege Activations . | . . . . . . . Martial Activations . | . . . . . . . Shielding Activations . | . . . . . . . Robots Disrupted . | . . . . . . . Combat Hostiles . | . . . . . . . Robots Corrupted . | . . . . . . . Combat Hostiles . | . . . . . . . Parts Fried . | . . . . . . . Impact Corruptions . | . . . . . . . Robots Melted . | . . . . . . . Combat Hostiles . | . . . . . . . Parts Melted . | . . . . . . . Heat Transferred 37 | . . . 37 . . . Parts Sabotaged . | . . . . . . . Parts Stolen . | . . . . . . . Parts Stripped . | . . . . . . . Power Chain Reactions . | . . . . . . . Alert | -11 -10 -10 -9 -9 -9 -8 ------- Run | Yrd Mat Min Mat Min Exi Min Maximum Alert Level . | . . . . . . . Low Security (%) 100 | 100 100 100 100 100 . 100 Level 1 . | . . . . . . . Level 2 . | . . . . . . . Level 3 . | . . . . . . . Level 4 . | . . . . . . . Level 5 . | . . . . . . . High Security . | . . . . . . . Max Security . | . . . . . . . Peak Influence 165 | 10 70 77 165 45 . 61 Initial 45 | . . 7 23 45 . . Average 17 | 1 11 9 43 7 . 7 Influence Increases 805 | 15 100 125 439 4 . 122 Destroy 0b10 Robot/C 520 | . 80 100 260 . . 80 Destroy 0b10 Robot/NC 85 | 15 . . 50 . . 20 Destroy Leader 118 | . 20 10 68 . . 20 Disable Machine 45 | . . . 45 . . . Destroy Structure 22 | . . . 16 4 . 2 Lose Combat Pursuer 15 | . . 15 . . . . Influence Decreases 805 | 15 80 84 384 120 . 122 Entered New Map 122 | . . 13 38 71 . . Time Decay 566 | 15 80 71 249 49 . 102 Lost Part 117 | . . . 97 . . 20 Squads Dispatched 3 | . 1 . 2 . . . Investigation . | . . . . . . . Extermination . | . . . . . . . Reinforcement 3 | . 1 . 2 . . . Assault . | . . . . . . . Garrison . | . . . . . . . Intercept . | . . . . . . . Searches Triggered . | . . . . . . . Construction Impeded . | . . . . . . . Haulers Reinforced . | . . . . . . . Active Scanning Responses . | . . . . . . . Cargo Convoy Interrupts . | . . . . . . . Stealth | -11 -10 -10 -9 -9 -9 -8 --------- Run | Yrd Mat Min Mat Min Exi Min Distress Signals 4 | . 1 . 3 . . . Communications Jammed . | . . . . . . . Distress Signals . | . . . . . . . Times Spotted 59 | . 16 7 28 1 . 7 Peak Tracking Total 9 | . 9 3 9 2 . 3 Tactical Retreats 2 | . . 1 . 1 . . Traps | -11 -10 -10 -9 -9 -9 -8 ------- Run | Yrd Mat Min Mat Min Exi Min Traps Triggered . | . . . . . . . Indirectly . | . . . . . . . Trap Hack Attempts . | . . . . . . . Triggered . | . . . . . . . Disarmed . | . . . . . . . Reprogrammed . | . . . . . . . Reused . | . . . . . . . Traps Extracted . | . . . . . . . Installed . | . . . . . . . Triggered . | . . . . . . . Machines | -11 -10 -10 -9 -9 -9 -8 ---------- Run | Yrd Mat Min Mat Min Exi Min Machines Disabled 3 | . . . 3 . . . Max in Single Turn 1 | . . . 1 . . . Machines Repaired . | . . . . . . . Machines Dismantled . | . . . . . . . Machines Sabotaged . | . . . . . . . Overloaded Fab Kills . | . . . . . . . Hacking | -11 -10 -10 -9 -9 -9 -8 --------- Run | Yrd Mat Min Mat Min Exi Min Machines Accessed 4 | . 2 . . . 2 . Terminals 2 | . 2 . . . . . Fabricators . | . . . . . . . Repair Stations . | . . . . . . . Recycling Units . | . . . . . . . Scanalyzers . | . . . . . . . Garrison Access . | . . . . . . . Total Hacks 7 | . 5 . . . 2 . Successful 4 | . 2 . . . 2 . Failed 3 | . 3 . . . . . Catastrophic . | . . . . . . . Database Lockouts . | . . . . . . . Manual 6 | . 5 . . . 1 . Terminals 5 | . 5 . . . . . Fabricators . | . . . . . . . Repair Stations . | . . . . . . . Recycling Units . | . . . . . . . Scanalyzers . | . . . . . . . Garrison Access . | . . . . . . . Terminal Hacks 3 | . 1 . . . 2 . Record 1 | . . . . . 1 . Zone Layout 1 | . 1 . . . . . Proto ID Catalog 1 | . . . . . 1 . Fabricator Hacks . | . . . . . . . Repair Station Hacks . | . . . . . . . Recycling Unit Hacks . | . . . . . . . Scanalyzer . | . . . . . . . Garrison Access Hacks . | . . . . . . . Unauthorized Hacks 1 | . 1 . . . . . Terminals 1 | . 1 . . . . . Skim 1 | . 1 . . . . . Fabricators . | . . . . . . . Repair Stations . | . . . . . . . Recycling Units . | . . . . . . . Scanalyzers . | . . . . . . . Garrison Access . | . . . . . . . Data Cores Recovered . | . . . . . . . Used . | . . . . . . . Hacking Detections 2 | . 2 . . . . . Full Trace Events . | . . . . . . . Feedback Events . | . . . . . . . Feedback Blocked . | . . . . . . . Robot Schematics Acquired . | . . . . . . . Robots Built . | . . . . . . . Authchips . | . . . . . . . Time . | . . . . . . . Total Robot Build Rating . | . . . . . . . Part Schematics Acquired . | . . . . . . . Parts Built . | . . . . . . . Authchips . | . . . . . . . Time . | . . . . . . . Total Part Build Rating . | . . . . . . . Parts Repaired . | . . . . . . . Time . | . . . . . . . Parts Recycled . | . . . . . . . Recycled Matter . | . . . . . . . Retrieved Matter . | . . . . . . . Retrieved Components . | . . . . . . . Parts Scanalyzed . | . . . . . . . Part Schematics Acquired . | . . . . . . . Parts Damaged . | . . . . . . . Bothacking | -11 -10 -10 -9 -9 -9 -8 ------------ Run | Yrd Mat Min Mat Min Exi Min Used RIF Installer . | . . . . . . . Robots Hacked . | . . . . . . . Non-combat . | . . . . . . . Combat . | . . . . . . . Robot Hacks Applied . | . . . . . . . Relay Couplers Released . | . . . . . . . Fabnet Peak Effective % . | . . . . . . . Robots Rewired . | . . . . . . . Allies Hacked . | . . . . . . . Hacks Repelled . | . . . . . . . Allies | -11 -10 -10 -9 -9 -9 -8 -------- Run | Yrd Mat Min Mat Min Exi Min Total Allies 3 | . . 1 . 2 . . Largest Group 2 | . . 1 . 2 . . Highest-Rated Group 52 | . . 31 . 52 . . Highest-Rated Ally 31 | . . 31 . 31 . . Total Orders . | . . . . . . . Ally Attacks 7 | . . . . 7 . . Total Damage 126 | . . . . 126 . . Kills 1 | . . . . 1 . . Allies Corrupted . | . . . . . . . Allies Melted . | . . . . . . . Intel | -11 -10 -10 -9 -9 -9 -8 ------- Run | Yrd Mat Min Mat Min Exi Min Active Infowar (turns) 1332 | 1 495 717 119 . . . Seismic 1332 | 1 495 717 119 . . . Robot Analysis Total . | . . . . . . . Derelict Logs Recovered 2 | . . 1 . 1 . . Drone Launches . | . . . . . . . Drone Recoveries . | . . . . . . . Exploration | -11 -10 -10 -9 -9 -9 -8 ------------- Run | Yrd Mat Min Mat Min Exi Min Turns Passed 3525 | 142 495 717 763 321 421 666 Spaces Moved 1848 | 66 265 405 354 179 331 248 Core 17 | 13 . . 4 . . . Treads 821 | 53 265 405 98 . . . Legs . | . . . . . . . Wheels 1010 | . . . 252 179 331 248 Hover . | . . . . . . . Flight . | . . . . . . . Fastest Speed 50 | 50 160 160 90 115 115 145 Average Speed 145 | 138 160 160 133 115 123 177 Slowest Speed 1050 | 160 160 160 1050 115 145 190 Overloaded Moves . | . . . . . . . Propulsion Burnouts . | . . . . . . . Robots Hopped . | . . . . . . . Potential Cave-ins . | . . . . . . . Cave-ins Triggered . | . . . . . . . Exploration Rate (%) 41 | 3 37 84 41 30 68 28 Regions Visited 6 Branch Regions 4 Pre-discovered Areas 3 | . . . . 2 1 . Known Exits Taken . | . . . . . . . Unknown Exits Taken 6 | 1 1 1 1 1 1 . Scrap Searched 4 | . . 1 . 2 . 1 Spaces Dug . | . . . . . . . Terrain Destroyed 21 | . . . 15 4 . 2 Melee . | . . . . . . . Projectile 6 | . . . . 4 . 2 AOE 15 | . . . 15 . . . Terrain Rammed . | . . . . . . . Walls Destroyed . | . . . . . . . Machines Disabled . | . . . . . . . Actions | -11 -10 -10 -9 -9 -9 -8 --------- Run | Yrd Mat Min Mat Min Exi Min Total 2330 | 97 301 437 510 233 344 408 Wait 171 | 3 9 10 20 16 . 113 Move 1842 | 65 264 404 353 178 330 248 Hop . | . . . . . . . Pick Up 53 | 11 6 2 20 4 8 2 Fast Attach 8 | . . . 6 . . 2 Attach 23 | 7 . 1 12 . 1 2 Detach 1 | . . . 1 . . . Swap 18 | . 2 . 6 6 1 3 Drop 21 | . 1 1 12 1 4 2 Fire 192 | 11 19 19 80 28 . 35 Melee . | . . . . . . . Ram . | . . . . . . . Kick . | . . . . . . . Crush . | . . . . . . . Escape Stasis . | . . . . . . . Rewire 1 | . . . . . . 1 Trap . | . . . . . . . Miscellaneous . | . . . . . . . Route ------- -11/Scrapyard -10/Materials -10/Mines (discovered 2 exits: [*Mat] / [*Sub]) -9/Materials (discovered 3 exits: [*Mat] / [*Min] / [*Sto]) -9/Mines (discovered 2 exits: [*Mat] / *Exi) -9/Exiles -8/Mines History --------- Turn | Location | Event 2 | -11/Scrapyard | Met Revision 17 4 | -11/Scrapyard | Discovered new exit (range 16) 143 | -11/Scrapyard | Entered Materials 303 | -10/Materials | Build established: Mutant 556 | -10/Materials | Discovered new exit (range 9) 638 | -10/Materials | Entered Mines 648 | -10/Mines | Learned Materials non-interactive machine intel 741 | -10/Mines | Received a Mining Laser from a helpful Derelict 984 | -10/Mines | Discovered new exit (range 10) 1162 | -10/Mines | Received a Rocket Launcher from a helpful Derelict 1336 | -10/Mines | Discovered new exit (range 13) 1355 | -10/Mines | Entered Materials 1355 | -9/Materials | Evolved 2 slots: Utility x2 1355 | -9/Materials | Discovered new exit (range 14) 1356 | -9/Materials | Loaded intel: 32 non-interactive machine locations 1691 | -9/Materials | Discovered new exit (range 10) 1782 | -9/Materials | Discovered new exit (range 13) 1971 | -9/Materials | Core integrity fell below 50% 2038 | -9/Materials | Lost 7 parts (1p1n2u3w) 2118 | -9/Materials | Entered Mines 2148 | -9/Mines | A weapon hastily lodged in a ceiling crevice suddenly fell to the ground 2173 | -9/Mines | Learned location of Zion (-7) 2178 | -9/Mines | Discovered new exit (range 7) 2234 | -9/Mines | Learned location of Storage (-9) 2324 | -9/Mines | Excavation squad dispatched 2324 | -9/Mines | A large section of the Mines collapsed 2426 | -9/Mines | Deemed a non-threat by the Exiles lab entrance 2428 | -9/Mines | Discovered new exit (range 5) 2439 | -9/Mines | Entered Exiles 2474 | -9/Exiles | Met 8R-AWN 2491 | -9/Exiles | Met EX-HEX 2552 | -9/Exiles | Met EX-DEC 2663 | -9/Exiles | Met EX-BIN 2679 | -9/Exiles | Aligned with FarCom system 2681 | -9/Exiles | Given EX-Vault access code 2707 | -9/Exiles | Opened EX-Vault 2719 | -9/Exiles | Found Lightpack 2.0 2725 | -9/Exiles | Found Firepult 2729 | -9/Exiles | Found AWS/Autocannon 2757 | -9/Exiles | Warned to stay clear of 0b10 Research branches 2849 | -9/Exiles | Discovered new exit (range 10) 2860 | -9/Exiles | Stole three prototypes: Lightpack 2.0, Firepult, AWS/Autocannon 2860 | -9/Exiles | Entered Mines 3012 | -8/Mines | Core integrity fell below 20% 3526 | -8/Mines | Destroyed by G-47 Trooper with Particle Gun Last Messages --------------- 03442_ T-07 Excavator is excavating. 03475_ K-01 Serf collects debris. 03497_ Slug penetrates G-47 Trooper. 03500_ R-06 Scavenger destroyed. 03503_ K-01 Serf collects debris. 03503_ Slug penetrates G-47 Trooper. 03503_ K-01 Serf destroyed. 03511_ Critical hit (Burn: +37). 03512_ Slug penetrates G-50 Soldier. 03517_ Cld. Ion Engine destroyed. 03518_ Slug penetrates G-50 Soldier. 03518_ Critical hit (Burn: +37). 03519_ Com. Matter Pod destroyed. 03521_ K-01 Serf collects debris. 03521_ Slug penetrates G-50 Soldier. 03522_ Overheating: Energy bleed (-13). 03522_ Critical hit (Burn: +37). 03523_ Hrd. Light Armor Plating destroyed. 03524_ Critical hit (Burn: +37). 03525_ Com. Wheel destroyed. Map ----- +----------------------------------------------------+ | ?????????????????????????????????????????????????? | | ?????????????????????????????????????????????????? | | ?????????????????????????????????????????????????? | | ?????????????????????????????????????????????????? | | ?????????????????????????????????????????????????? | | ?????????????????????????????????????????????????? | | ?????????????????????????????????????????????????? | | ?????????????????????????????????????????????????? | | ?????????????????????????????????????????????????? | | ?????????????????????????????????????????????????? | | ???????????????????????? ???????????????????????? | | ???????????????????????? ???????????????????????? | | ???????????????????????? ???????????????????????? | | ???????????????????????? ???????????????????????? | | ???????????????????????? ##?????????????????????? | | ???????????????????????? ###???????????????????? | | ???????????????????????? ????????????????????? | | ???????????????????????? ????????????????????? | | ???????????????????????? ????????????????????? | | ????????????????????????#k ?????????????????????? | | ????????????????????????*!! ?????????????????????? | | ????????????????????????#%g#?????????????????????? | | ???????????????????######gg##????????????????????? | | ???????????????????# ! =%*##???????????????????? | | ????????##?????????# #### #???????????????????? | | ???????## ##???????# #??#@ #???????????????????? | | ???????# #???????# #??# #???????????????????? | | ???##??#] ##??????# #?## #???????????????????? | | ??## ??#% !####???# ### #???????????????????? | | ??# #?## =##?## ##???????????????????? | | ??# ??#### ! ### ##????????????????????? | | ???# ##???## ##?????????????????????? | | ???# ##???## #??????????????????????? | | ???# ##???#### ## ##?????????????????????? | | ???# ##?????# ### ##????????????????????? | | ???# ##????# #?#### ##???????????????????? | | ????# ###### #????## ##??????????????????? | | ?????# #?????## ##?????????????????? | | ###?## ## #####??????### ###???????????????? | | ### ## #????????????## #???????????????? | | ## #?????????????# #???????????????? | | = * ## #????????###### #???????????????? | | #= [ ## #????????# ###???????????????? | | ! #????????# ##?????????????????? | | # #####????????# ######??????????????????? | | # ##????????###?# #???????????????????????? | | # #?????????# ## #???????????????????????? | | ##?????????# !#???????????????????????? | | ####??????????# #####???????????????????????? | | # ##???????????????????????????????????????????? | +----------------------------------------------------+ Best States ------------- Heat Dissipation 28 Energy Generation 14 Energy Capacity 280 Matter Stores 450 Matter Capacity 450 Sight Range 16 Terrain Scan Density 10 Armor Coverage 300 Evasion (%) 50 Recoil Reduction 2 Item Schematics ----------------- None Robot Schematics ------------------ None Fabricated ------------ Nothing Repaired ---------- Nothing Alien Tech Used ----------------- None Achievements -------------- None Challenges ------------ None Game ------ Seed NuclearExoskeletonPendant Manual? 0 Play Time 00:18:14 Cumulative 305.8 hours Start 2025.09.19 @ 13:18:49 End 2025.09.19 @ 13:44:29 Sessions 1 Manual Loads 0 Difficulty Rogue Special Mode None Game No. 425 Rogue 425 Adventurer 0 Explorer 0 Win Type - Total 10 Types 5/0/1/2/1/0/1/0/0/0 Lore% 86 Gallery% 81 Achievement% 67 Wizard Run 0 Options --------- Layout 0 ASCII 0 Keyboard 0 Movement Mouse Keybinds 0 Fullscreen 1 Font 24/Tamsyn Map View 76x50 Zoom Use 0% Tactical HUD 1 Map Filters NONE Filters NONE Steam 1 RUN: e76380cf-28bd-418f-8094-255abfacbd12